[Event "56th Rubinstein Memorial D 2020"]
[Site "Polanica Zdroj"]
[Date "2020.08.16"]
[Round "2.11"]
[White "Sypien, Natan"]
[Black "Zielinski, Marcin"]
[Result "1-0"]
[ECO "D43"]
[WhiteElo "1794"]
[BlackElo "1527"]
[Annotator "NA"]
[PlyCount "77"]
[EventDate "2020.08.15"]
[EventType "swiss"]
[EventCountry "POL"]
[SourceTitle "playchess.com"]
[Source "ChessBase"]
[SourceQuality "1"]
[TimeControl "40/5400+30:1800+30"]

1. d4 {[%emt 0:00:00]} c6 {[%emt 0:00:00]} 2. c4 {[%emt 0:00:00]} d5 {[%emt 0:00:00]} 3. Nf3 {[%emt 0:00:00]} Nf6 {[%emt 0:00:03]} 4. Nc3 {[%emt 0:00:00]} e6 {[%emt 0:00:16]} 5. Bg5 {[%emt 0:00:00]} h6 {[%emt 0:00:26]} 6. Bh4 {[%emt 0:00:04]} dxc4 {[%emt 0:00:47]} 7. e4 {[%emt 0:01:41]} g5 {[%emt 0:04:51]} 8. Bg3 {[%emt 0:05:09]} b5 {[%emt 0:00:08]} 9. e5 {[%emt 0:11:23]} Nh5 {[%emt 0:11:06]} 10. Be2 {[%emt 0:09:21]} Nxg3 {[%emt 0:04:38]} 11. hxg3 {[%emt 0:04:30]} g4 {[%emt 0:06:33]} 12. Nh2 {[%emt 0:02:47]} Be7 {[%emt 0:04:46]} 13. Nxg4 {[%emt 0:02:32]} f5 {[%emt 0:03:09]} 14. exf6 {[%emt 0:02:56]} Bxf6 {[%emt 0:00:46]} 15. Nxf6+ {[%emt 0:00:15]} Qxf6 {[%emt 0:00:15]} 16. Bh5+ {[%emt 0:00:35]} Ke7 {[%emt 0:02:24]} 17. Ne4 {[%emt 0:01:09]} Qf5 {[%emt 0:01:20]} 18. Rh4 {[%emt 0:01:38]} Nd7 {[%emt 0:01:13]} 19. Rf4 {[%emt 0:02:02]} Qd5 {[%emt 0:01:22]} 20. Qg4 {[%emt 0:07:36]} Kd8 {[%emt 0:10:50]} 21. Qg7 {[%emt 0:19:53]} Qxh5 {[%emt 0:00:37]} 22. Qxh8+ {[%emt 0:00:03]} Kc7 {[%emt 0:00:18]} 23. Rh4 {[%emt 0:01:38]} Qf5 {[%emt 0:01:38]} 24. Qxh6 {[%emt 0:00:33]} Qd5 {[%emt 0:01:10]} 25. Nf6 {[%emt 0:06:43]} Qxg2 {[%emt 0:02:15]} 26. Nxd7 {[%emt 0:04:39]} Qg1+ {[%emt 0:00:52]} 27. Ke2 {[%emt 0:00:06]} Qxa1 {[%emt 0:00:28]} 28. Qf4+ {[%emt 0:00:23]} Kb7 {[%emt 0:01:35]} 29. Nc5+ {[%emt 0:01:03]} Kb6 {[%emt 0:00:13]} 30. Rh7 {[%emt 0:00:17]} Qxb2+ {[%emt 0:00:25]} 31. Kf3 {[%emt 0:01:38]} Qa3+ {[%emt 0:07:10]} 32. Kg2 {[%emt 0:00:47]} b4 {[%emt 0:00:19]} 33. Qc7+ {[%emt 0:00:34]} Kb5 {[%emt 0:00:22]} 34. Rh5 {[%emt 0:00:55]} c3 {[%emt 0:00:47]} 35. Nb3+ {[%emt 0:01:05]} Kc4 {[%emt 0:00:40]} 36. Qxc6+ {[%emt 0:00:02]} Kd3 {[%emt 0:00:29]} 37. Qf3+ {[%emt 0:00:02]} Kc2 {[%emt 0:00:53]} 38. Qe2+ {[%emt 0:00:02]} Kb1 {[%emt 0:00:56]} 39. Rh1+ {[%emt 0:00:07]} 1-0

[Event "56th Rubinstein Memorial D 2020"]
[Site "Polanica Zdroj"]
[Date "2020.08.16"]
[Round "2.12"]
[White "Grzebieniowski, Michal"]
[Black "Borowski, Przemyslaw"]
[Result "1/2-1/2"]
[ECO "A50"]
[WhiteElo "1390"]
[BlackElo "1790"]
[Annotator "NA"]
[PlyCount "143"]
[EventDate "2020.08.15"]
[EventType "swiss"]
[EventCountry "POL"]
[SourceTitle "playchess.com"]
[Source "ChessBase"]
[SourceQuality "1"]
[TimeControl "40/5400+30:1800+30"]

1. d4 Nf6 2. c4 Nc6 3. Nf3 e6 4. g3 Bb4+ 5. Bd2 Bxd2+ 6. Nbxd2 O-O 7. Bg2 d6 8. O-O e5 9. e3 Bg4 10. Qc2 Re8 11. Rfe1 h6 12. d5 Nb4 13. Qb3 a5 14. a3 Na6 15. Qc3 a4 16. e4 Nc5 17. Rab1 Qd7 18. Qc2 Ra5 19. Re3 Nh7 20. Ne1 f5 21. f3 f4 22. Re2 Bh3 23. Nd3 Nxd3 24. Qxd3 fxg3 25. hxg3 Bxg2 26. Rxg2 b5 27. Qc3 Raa8 28. c5 Rf8 29. c6 Qh3 30. Rf1 Ng5 31. Rff2 Qh5 32. Rh2 Qg6 33. Kg2 Nh7 34. Rh1 Nf6 35. Nf1 Nh5 36. Rh4 Rf7 37. Rg4 Qh7 38. Rh4 Nf6 39. Qd3 Raf8 40. Ne3 g5 41. Rh1 Nxe4 42. Rff1 Nc5 43. Qxh7+ Rxh7 44. Ng4 h5 45. Nf2 h4 46. Nh3 hxg3 47. Nxg5 Rg7 48. Ne4 Nd3 49. Nxg3 Rf6 50. Rfg1 Rfg6 51. Kh2 Nf2 52. Nh5 Rxg1 53. Rxg1 Rxg1 54. Kxg1 Nd3 55. Nf6+ Kf7 56. Ne4 Nxb2 57. Nxd6+ Ke7 58. Nxb5 Nc4 59. Kf2 Nxa3 60. Nxa3 Kd6 61. Ke3 Kxd5 62. Kd3 Kxc6 63. Ke4 Kd6 64. Nb5+ Kc5 65. Na3 Kb4 66. Nb1 a3 67. Nxa3 Kxa3 68. Kxe5 c5 69. f4 c4 70. f5 c3 71. f6 c2 72. f7 1/2-1/2

[Event "56th Rubinstein Memorial D 2020"]
[Site "Polanica Zdroj"]
[Date "2020.08.16"]
[Round "2.13"]
[White "Gromczak, Dariusz"]
[Black "Biel, Maciej"]
[Result "1-0"]
[ECO "B07"]
[WhiteElo "1785"]
[BlackElo "1275"]
[Annotator "NA"]
[PlyCount "131"]
[EventDate "2020.08.15"]
[EventType "swiss"]
[EventCountry "POL"]
[SourceTitle "playchess.com"]
[Source "ChessBase"]
[SourceQuality "1"]
[TimeControl "40/5400+30:1800+30"]

1. e4 {[%emt 0:00:00]} d6 {[%emt 0:00:09]} 2. d4 {[%emt 0:00:00]} Nf6 {[%emt 0:00:05]} 3. Nc3 {[%emt 0:00:20]} g6 {[%emt 0:00:07]} 4. Be3 {[%emt 0:00:33]} Bg7 {[%emt 0:00:31]} 5. Qd2 {[%emt 0:00:36]} c6 {[%emt 0:01:37]} 6. f3 {[%emt 0:03:48]} b5 {[%emt 0:03:22]} 7. Bd3 {[%emt 0:04:12]} Qa5 {[%emt 0:05:30]} 8. Nge2 {[%emt 0:01:36]} Nbd7 {[%emt 0:02:40]} 9. d5 {[%emt 0:08:59]} cxd5 {[%emt 0:14:09]} 10. Nxb5 {[%emt 0:01:28]} Qxd2+ {[%emt 0:00:32]} 11. Kxd2 {[%emt 0:00:57]} Kd8 {[%emt 0:00:05]} 12. exd5 {[%emt 0:18:28]} Nxd5 {[%emt 0:04:02]} 13. Bd4 {[%emt 0:00:40]} Bxd4 {[%emt 0:02:16]} 14. Nexd4 {[%emt 0:02:59]} Bb7 {[%emt 0:03:44]} 15. c4 {[%emt 0:08:47]} Nf4 {[%emt 0:04:33]} 16. Be4 {[%emt 0:00:46]} Bxe4 {[%emt 0:00:23]} 17. fxe4 {[%emt 0:00:11]} Ne5 {[%emt 0:00:44]} 18. g3 {[%emt 0:06:46]} Nh3 {[%emt 0:01:11]} 19. b3 {[%emt 0:01:42]} Nf2 {[%emt 0:02:26]} 20. Rhe1 {[%emt 0:01:05]} a6 {[%emt 0:02:00]} 21. Nc3 {[%emt 0:01:10]} h5 {[%emt 0:02:59]} 22. Re2 {[%emt 0:08:04]} Nfg4 {[%emt 0:00:37]} 23. h3 {[%emt 0:02:54]} Nf6 {[%emt 0:00:16]} 24. Nd5 {[%emt 0:01:12]} Nfd7 {[%emt 0:01:42]} 25. Rf1 {[%emt 0:01:06]} a5 {[%emt 0:00:49]} 26. Nf3 {[%emt 0:01:38]} Nxf3+ {[%emt 0:01:55]} 27. Rxf3 {[%emt 0:00:03]} Ne5 {[%emt 0:00:12]} 28. Rf1 {[%emt 0:00:23]} e6 {[%emt 0:00:40]} 29. Nc3 {[%emt 0:00:48]} Ke7 {[%emt 0:01:24]} 30. Ke3 {[%emt 0:01:05]} f5 {[%emt 0:03:12]} 31. Rd2 {[%emt 0:02:05]} h4 32. Rg1 {[%emt 0:00:25]} hxg3 {[%emt 0:02:21]} 33. Rxg3 {[%emt 0:00:11]} Rh4 {[%emt 0:00:18]} 34. exf5 {[%emt 0:01:58]} exf5 {[%emt 0:00:57]} 35. Nd5+ {[%emt 0:00:42]} Kf7 36. Nf4 {[%emt 0:00:46]} Ra6 {[%emt 0:04:54]} 37. Rdg2 {[%emt 0:01:17]} Rh6 {[%emt 0:01:09]} 38. Nd3 {[%emt 0:01:23]} a4 {[%emt 0:01:56]} 39. Kd4 {[%emt 0:01:15]} axb3 {[%emt 0:08:37]} 40. axb3 {[%emt 0:00:03]} Kf6 {[%emt 0:01:10]} 41. Nb4 {[%emt 0:31:20]} Nc6+ {[%emt 0:34:03]} 42. Nxc6 {[%emt 0:01:22]} Rxc6 {[%emt 0:00:01]} 43. Kd5 {[%emt 0:03:00]} Rb6 {[%emt 0:00:33]} 44. Re2 {[%emt 0:00:58]} f4 {[%emt 0:02:00]} 45. Rf3 {[%emt 0:00:49]} Rh5+ {[%emt 0:00:18]} 46. Kd4 {[%emt 0:00:30]} g5 {[%emt 0:00:32]} 47. Kc3 {[%emt 0:02:06]} Rh8 {[%emt 0:00:12]} 48. b4 {[%emt 0:02:04]} Rhb8 {[%emt 0:00:12]} 49. b5 {[%emt 0:00:53]} Rc8 {[%emt 0:00:57]} 50. Kd4 Kf5 51. Re7 {[%emt 0:00:59]} Kf6 {[%emt 0:01:50]} 52. Ra7 Re8 53. h4 {[%emt 0:01:20]} gxh4 {[%emt 0:03:09]} 54. Rxf4+ {[%emt 0:00:05]} Kg5 {[%emt 0:00:08]} 55. Rf1 {[%emt 0:01:22]} Rh8 {[%emt 0:01:30]} 56. Rg7+ {[%emt 0:00:40]} Kh5 {[%emt 0:00:28]} 57. Rf5+ Kh6 58. Rg4 {[%emt 0:00:42]} Rbb8 {[%emt 0:02:13]} 59. Rxh4+ {[%emt 0:00:17]} Kg6 {[%emt 0:00:20]} 60. Rxh8 {[%emt 0:00:41]} Rxh8 {[%emt 0:00:01]} 61. Rf3 {[%emt 0:00:40]} Rc8 {[%emt 0:02:16]} 62. Rf4 {[%emt 0:00:34]} Kg5 {[%emt 0:00:22]} 63. Rf7 {[%emt 0:00:09]} Rd8 {[%emt 0:00:26]} 64. Kd5 {[%emt 0:00:21]} Kg6 {[%emt 0:00:10]} 65. Re7 {[%emt 0:00:54]} Kf5 {[%emt 0:01:58]} 66. Re6 {[%emt 0:00:17]} 1-0

[Event "56th Rubinstein Memorial D 2020"]
[Site "Polanica Zdroj"]
[Date "2020.08.16"]
[Round "2.15"]
[White "Szmidt, Przemyslaw"]
[Black "Kolodziejski, Grzegorz"]
[Result "1-0"]
[ECO "B33"]
[WhiteElo "1831"]
[BlackElo "1550"]
[Annotator "NA"]
[PlyCount "87"]
[EventDate "2020.08.15"]
[EventType "swiss"]
[EventCountry "POL"]
[SourceTitle "playchess.com"]
[Source "ChessBase"]
[SourceQuality "1"]
[TimeControl "40/5400+30:1800+30"]

{[%evp 8,82,33,14,28,42,32767,32767,32767,32767,32767,32767,32767,32767,32767,32767,32767,32767,32767,32767,32767,-230,32767,-75,-85,-45,-79,-69,-47,32767,32767,-52,43,52,35,40,45,39,47,61,77,77,139,70,32767,176,147,208,204,32767,566,394,32767,32767,32767,32767,32767,3233,29991,32767,32767,29987,29988,29989,29989,722,5597,29979,32767,6295,32767,32767,29966,29975,29975,32767,29993]} 1. e4 {[%emt 0:00:00]} c5 {[%emt 0:00:00]} 2. Nf3 {[%emt 0:00:00]} Nc6 {[%emt 0:00:04]} 3. d4 {[%emt 0:01:29]} cxd4 {[%emt 0:00:28]} 4. Nxd4 {[%emt 0:00:09]} Nf6 {[%emt 0:00:13]} 5. Nc3 {[%emt 0:00:06]} e5 {[%emt 0:00:23]} 6. Ndb5 {[%emt 0:00:07]} d6 {[%emt 0:00:14]} 7. Bg5 {[%emt 0:00:07]} a6 {[%emt 0:00:24]} 8. Bxf6 {[%emt 0:00:10]} gxf6 {[%emt 0:00:11]} 9. Na3 {[%emt 0:00:01]} b5 {[%emt 0:00:18]} 10. Nd5 {[%emt 0:00:06]} f5 {[%emt 0:00:32]} 11. Bxb5 {[%emt 0:00:12]} axb5 {[%emt 0:00:29]} 12. Nxb5 {[%emt 0:00:06]} Ra4 {[%emt 0:02:25]} 13. Nbc7+ {[%emt 0:02:21]} Kd7 {[%emt 0:00:50]} 14. Qh5 $2 {[%emt 0:02:13] [#] B33: Sicilian: Pelikan and Sveshnikov Variations.} (14. O-O $11) 14... Ne7 $146 {[%emt 0:00:21]} ({Predecessor:} 14... Rxe4+ 15. Kf1 Ne7 16. Qxf7 Kc6 17. c4 Nxd5 18. cxd5+ Kb7 19. Ne6+ Qd7 20. Qxf5 Qb5+ 21. Kg1 Rf4 {1-0 (32) Quparadze,G (2462)-Daghli,A (2424) Rasht 2020}) 15. O-O {[%emt 0:07:26]} Nxd5 {[%emt 0:01:22]} 16. Nxd5 {[%emt 0:00:11]} Ke8 {[%emt 0:00:20]} 17. exf5 {[%emt 0:02:22]} Bb7 {[%emt 0:00:43]} 18. Rfd1 {[%emt 0:10:01]} Rh4 {[%emt 0:01:18]} 19. Qe2 {[%emt 0:05:32]} Bxd5 {[%emt 0:02:01]} (19... Qc8 $15) 20. Rxd5 {[%emt 0:00:57]} Qd7 {[%emt 0:00:12] [#]} 21. Rxe5+ $1 {[%emt 0:01:38]} dxe5 {[%emt 0:02:19]} 22. Qxe5+ {[%emt 0:00:06] Double Attack} Qe7 {[%emt 0:03:16]} 23. Qxh8 {[%emt 0:00:41]} Re4 {[%emt 0:00:23] [#]} (23... f6 $1 $11) 24. Qc3 $1 {[%emt 0:00:45]} f6 {[%emt 0:00:32]} 25. a4 {[%emt 0:01:23]} Kf7 {[%emt 0:01:23]} 26. a5 {[%emt 0:00:56]} Qa7 {[%emt 0:00:47]} 27. g3 {[%emt 0:01:14]} Bc5 {[%emt 0:00:09]} 28. Kg2 {[%emt 0:01:57]} Bd4 $2 {[%emt 0:04:55]} (28... Bxf2 $16 29. a6 Bc5) 29. Qf3 {[%emt 0:01:27]} Re7 {[%emt 0:03:29]} 30. Rd1 {[%emt 0:00:51]} Kg7 {[%emt 0:00:27]} 31. Qg4+ {[%emt 0:00:11]} Kh6 {[%emt 0:00:16]} 32. Rxd4 {[%emt 0:00:11]} Qxa5 {[%emt 0:00:33]} 33. Qh4+ {[%emt 0:00:46]} Kg7 {[%emt 0:00:05]} 34. Rg4+ {[%emt 0:00:06]} Kf7 {[%emt 0:00:36]} 35. Qxh7+ {[%emt 0:01:01]} Ke8 {[%emt 0:00:01]} 36. Qg8+ {[%emt 0:00:09]} (36. Qh8+ $142 Kd7 37. Rd4+ Kc6 38. Qxf6+ {[%mdl 64] Double Attack} Kb7 39. Qxe7+ Qc7 40. Rb4+ Ka6 41. Qe2+ Ka7 42. Qe3+ Ka6 43. Qd3+ Ka7 44. Qa3+ Qa5 45. Qxa5#) 36... Kd7 {[%emt 0:00:07]} 37. Rd4+ {[%emt 0:00:11]} Kc6 {[%emt 0:00:10]} 38. Qc8+ $18 {[%emt 0:00:42]} (38. c3 $142 Rc7 39. Rc4+ Kb7 40. Rb4+ Qxb4 41. cxb4 Rc6 42. h4 Rc8 {[#]} 43. Qxc8+ $3 {[%mdl 576] Promotion} Kxc8 44. h5) 38... Kb6 {[%emt 0:00:12]} 39. Qb8+ {[%emt 0:00:57]} Rb7 {[%emt 0:00:27]} 40. Qd8+ {[%emt 0:01:03] Double Attack} Rc7 {[%emt 0:00:16]} 41. Rd7 {[%emt 0:30:44]} Qxf5 {[%emt 0:30:32]} 42. Qxc7+ {[%emt 0:00:10]} Kb5 {[%emt 0:00:10]} 43. Qb7+ {[%emt 0:00:14]} Kc4 {[%emt 0:00:19]} 44. Qc6+ {[%emt 0:00:15]} 1-0

[Event "56th Rubinstein Memorial D 2020"]
[Site "Polanica Zdroj"]
[Date "2020.08.16"]
[Round "2.16"]
[White "Sidlo, Szymon"]
[Black "Wawrzyniak, Pawel"]
[Result "1-0"]
[ECO "C49"]
[WhiteElo "1396"]
[BlackElo "1824"]
[Annotator "NA"]
[PlyCount "86"]
[EventDate "2020.08.15"]
[EventType "swiss"]
[EventCountry "POL"]
[SourceTitle "playchess.com"]
[Source "ChessBase"]
[SourceQuality "1"]
[TimeControl "40/5400+30:1800+30"]

1. e4 {[%emt 0:00:00]} e5 {[%emt 0:00:00]} 2. Nf3 {[%emt 0:01:44]} Nc6 {[%emt 0:00:00]} 3. Nc3 {[%emt 0:00:05]} Nf6 {[%emt 0:00:00]} 4. Bb5 {[%emt 0:00:06]} Bb4 {[%emt 0:04:50]} 5. O-O {[%emt 0:00:13]} d6 {[%emt 0:01:11]} 6. d3 {[%emt 0:08:41]} (6. Nd5 $16 Bc5 7. c3) 6... h6 {[%emt 0:06:52]} 7. Nd5 {[%emt 0:04:54]} Bc5 {[%emt 0:03:41]} 8. Be3 {[%emt 0:03:01]} Bxe3 {[%emt 0:02:56]} 9. fxe3 {[%emt 0:00:05]} O-O {[%emt 0:09:26]} 10. Bxc6 {[%emt 0:06:13]} bxc6 {[%emt 0:00:01]} 11. Nxf6+ {[%emt 0:00:11]} Qxf6 {[%emt 0:00:07]} 12. Qd2 {[%emt 0:01:36]} Bd7 {[%emt 0:14:07]} 13. Qc3 {[%emt 0:17:07]} Qe7 {[%emt 0:05:14]} 14. Rf2 {[%emt 0:03:06]} Rab8 {[%emt 0:09:08]} 15. a4 {[%emt 0:03:04]} c5 {[%emt 0:01:50]} 16. b3 {[%emt 0:00:29]} Bc6 {[%emt 0:07:24]} 17. Re1 {[%emt 0:05:17]} g6 {[%emt 0:05:33]} 18. g4 {[%emt 0:09:35]} (18. Qa5 $11) 18... f5 $15 {[%emt 0:01:42]} 19. exf5 {[%emt 0:03:29]} gxf5 {[%emt 0:00:17]} 20. gxf5 {[%emt 0:00:28]} Rxf5 {[%emt 0:00:13]} 21. e4 {[%emt 0:00:21]} Rf4 {[%emt 0:00:30]} 22. Rg2+ {[%emt 0:01:46]} Kh8 {[%emt 0:00:41]} 23. Rf1 {[%emt 0:00:50]} Qf6 {[%emt 0:01:52]} 24. Nd2 {[%emt 0:02:17]} Rf8 {[%emt 0:03:31]} 25. Rxf4 {[%emt 0:02:15]} Qxf4 {[%emt 0:00:12]} 26. Qa1 {[%emt 0:07:00]} Qe3+ {[%emt 0:03:42]} 27. Kh1 {[%emt 0:00:19]} Bd7 {[%emt 0:03:46]} 28. Qg1 {[%emt 0:03:55]} Qf4 {[%emt 0:00:11]} 29. Rg3 {[%emt 0:01:03]} Qxd2 {[%emt 0:00:49]} 30. Rg7 {[%emt 0:00:10]} Bh3 {[%emt 0:03:01]} 31. Rg6 {[%emt 0:01:33]} h5 {[%emt 0:03:52]} 32. Rg5 {[%emt 0:10:15]} Qxg5 {[%emt 0:00:21]} 33. Qxg5 {[%emt 0:00:04]} Rf1+ {[%emt 0:00:07]} 34. Qg1 {[%emt 0:00:04]} Rxg1+ {[%emt 0:00:10]} 35. Kxg1 {[%emt 0:00:05]} Bg4 {[%emt 0:00:14]} 36. Kf2 {[%emt 0:00:20]} Bd1 {[%emt 0:00:28]} 37. c3 {[%emt 0:00:06]} Bxb3 {[%emt 0:00:13]} 38. a5 {[%emt 0:00:02]} Kg7 {[%emt 0:00:24]} 39. Ke3 {[%emt 0:00:05]} Kf6 {[%emt 0:01:30]} 40. d4 {[%emt 0:00:00]} Bc4 {[%emt 0:00:36]} 41. dxc5 {[%emt 0:30:10]} dxc5 {[%emt 0:30:02]} 42. h4 {[%emt 0:00:10]} Ke6 {[%emt 0:00:14]} 43. Kd2 {[%emt 0:00:39]} Kd6 {[%emt 0:00:07]} 1-0

[Event "56th Rubinstein Memorial D 2020"]
[Site "Polanica Zdroj"]
[Date "2020.08.16"]
[Round "2.17"]
[White "Jurkowska, Magdalena"]
[Black "Ciechonski, Piotr"]
[Result "0-1"]
[ECO "B72"]
[WhiteElo "1465"]
[BlackElo "1774"]
[Annotator "NA"]
[PlyCount "120"]
[EventDate "2020.08.15"]
[EventType "swiss"]
[EventCountry "POL"]
[SourceTitle "playchess.com"]
[Source "ChessBase"]
[SourceQuality "1"]
[TimeControl "40/5400+30:1800+30"]

1. e4 {[%emt 0:00:00]} c5 {[%emt 0:00:00]} 2. Nf3 {[%emt 0:00:15]} d6 {[%emt 0:00:54]} 3. d4 {[%emt 0:00:38]} cxd4 {[%emt 0:00:20]} 4. Nxd4 {[%emt 0:00:35]} Nf6 {[%emt 0:00:46]} 5. Nc3 {[%emt 0:00:29]} g6 {[%emt 0:00:16]} 6. Be2 {[%emt 0:05:14]} Bg7 {[%emt 0:00:34]} 7. Be3 {[%emt 0:00:57]} O-O {[%emt 0:00:24]} 8. O-O {[%emt 0:00:45]} Nc6 {[%emt 0:00:23]} 9. Rb1 {[%emt 0:07:34]} d5 {[%emt 0:00:44]} 10. exd5 {[%emt 0:03:43]} Nxd5 {[%emt 0:00:44]} 11. Nxd5 {[%emt 0:03:26]} Qxd5 {[%emt 0:00:25]} 12. Bf3 {[%emt 0:02:48]} Qxa2 {[%emt 0:01:07]} 13. Nxc6 {[%emt 0:00:42]} bxc6 {[%emt 0:00:26]} 14. Bxc6 {[%emt 0:00:19]} Rb8 {[%emt 0:01:03]} 15. Ra1 {[%emt 0:01:25]} Qxb2 {[%emt 0:02:10]} 16. Rxa7 {[%emt 0:00:08]} Bb7 {[%emt 0:05:26]} 17. Bxb7 {[%emt 0:03:27]} Rxb7 {[%emt 0:00:17]} 18. Rxb7 {[%emt 0:00:19]} Qxb7 {[%emt 0:00:25]} 19. Qb1 {[%emt 0:01:30]} Qc6 {[%emt 0:07:22]} 20. g3 {[%emt 0:01:43]} Ra8 {[%emt 0:03:39]} 21. Rc1 {[%emt 0:04:20]} Bc3 {[%emt 0:03:02]} 22. Qb6 {[%emt 0:02:36]} Qa4 {[%emt 0:10:27]} 23. Qb7 {[%emt 0:10:20]} e6 {[%emt 0:00:45]} 24. Rb1 {[%emt 0:03:21]} Kg7 {[%emt 0:01:15]} 25. Qb3 {[%emt 0:02:57]} Qc6 {[%emt 0:02:05]} 26. Qb7 {[%emt 0:04:31]} Qd5 {[%emt 0:03:23]} 27. Qxd5 {[%emt 0:07:07]} exd5 {[%emt 0:00:02]} 28. Rd1 {[%emt 0:00:11]} Ra5 {[%emt 0:03:52]} 29. Bd4+ {[%emt 0:00:42]} Bxd4 {[%emt 0:00:06]} 30. Rxd4 {[%emt 0:00:05]} Rc5 {[%emt 0:00:55]} 31. Rd2 {[%emt 0:00:13]} Kf6 {[%emt 0:00:02]} 32. Kg2 {[%emt 0:00:23]} Ke5 {[%emt 0:00:14]} 33. f3 {[%emt 0:00:18]} Rc3 {[%emt 0:02:33]} 34. Kf2 {[%emt 0:00:37]} g5 {[%emt 0:00:46]} 35. h3 {[%emt 0:01:02]} h5 {[%emt 0:00:23]} 36. Kg2 {[%emt 0:01:41]} f5 {[%emt 0:01:06]} 37. Kf2 {[%emt 0:00:35]} d4 {[%emt 0:00:39]} 38. Kg2 {[%emt 0:00:30]} Kd5 {[%emt 0:01:23]} 39. Re2 {[%emt 0:01:18]} f4 {[%emt 0:06:36]} 40. g4 {[%emt 0:00:21]} hxg4 {[%emt 0:00:55]} 41. hxg4 {[%emt 0:30:04]} Re3 {[%emt 0:30:31]} 42. Rd2 {[%emt 0:00:21]} Kc4 {[%emt 0:00:07]} 43. Kf2 {[%emt 0:00:14]} Kc3 {[%emt 0:04:14]} 44. Rd1 {[%emt 0:00:09]} Re7 {[%emt 0:00:49]} 45. Rd3+ {[%emt 0:01:19]} Kc4 {[%emt 0:00:34]} 46. Rd2 {[%emt 0:00:11]} Rh7 {[%emt 0:01:18]} 47. Kg2 {[%emt 0:00:19]} Ra7 {[%emt 0:00:53]} 48. Kf2 {[%emt 0:00:24]} Ra1 {[%emt 0:01:20]} 49. Kg2 {[%emt 0:00:36]} Rc1 {[%emt 0:02:05]} 50. Kf2 {[%emt 0:00:14]} Rh1 {[%emt 0:01:41]} 51. Kg2 {[%emt 0:00:11]} Rh8 {[%emt 0:00:46]} 52. Kg1 {[%emt 0:00:09]} Re8 {[%emt 0:02:06]} 53. Kf1 {[%emt 0:00:22]} Rd8 {[%emt 0:00:59]} 54. Rd3 {[%emt 0:00:42]} Rd5 {[%emt 0:01:07]} 55. Ke1 {[%emt 0:02:21]} Re5+ {[%emt 0:00:29]} 56. Kf2 {[%emt 0:00:05]} Re3 {[%emt 0:01:37]} 57. Rd2 {[%emt 0:00:06]} Rc3 {[%emt 0:01:37]} 58. Ke2 {[%emt 0:00:25]} Ra3 {[%emt 0:02:13]} 59. Kf1 {[%emt 0:00:54]} Rxf3+ {[%emt 0:00:13]} 60. Ke2 Ra3 0-1

[Event "56th Rubinstein Memorial D 2020"]
[Site "Polanica Zdroj"]
[Date "2020.08.16"]
[Round "2.18"]
[White "Zarzecki, Dymitr Stanislaw"]
[Black "Garwacki, Kornel"]
[Result "1/2-1/2"]
[ECO "A05"]
[WhiteElo "1596"]
[BlackElo "1492"]
[Annotator "NA"]
[PlyCount "89"]
[EventDate "2020.08.15"]
[EventType "swiss"]
[EventCountry "POL"]
[SourceTitle "playchess.com"]
[Source "ChessBase"]
[SourceQuality "1"]
[TimeControl "40/5400+30:1800+30"]

1. Nf3 {[%emt 0:00:00]} Nf6 {[%emt 0:02:17]} 2. c4 {[%emt 0:00:45]} d6 {[%emt 0:01:20]} 3. b3 {[%emt 0:03:41]} e5 {[%emt 0:01:24]} 4. Bb2 {[%emt 0:01:03]} c5 {[%emt 0:01:00]} 5. g3 {[%emt 0:02:39]} Nc6 {[%emt 0:01:19]} 6. d3 {[%emt 0:01:33]} g6 {[%emt 0:01:18]} 7. Bg2 {[%emt 0:01:14]} Bg7 {[%emt 0:00:43]} 8. O-O {[%emt 0:02:08]} O-O {[%emt 0:00:39]} 9. Nc3 {[%emt 0:02:34]} Nh5 {[%emt 0:01:36]} 10. Nd5 {[%emt 0:09:13]} f5 {[%emt 0:00:58]} 11. e3 {[%emt 0:05:33]} Rf7 {[%emt 0:08:43]} 12. Ne1 {[%emt 0:17:00]} Be6 {[%emt 0:02:42]} 13. Qd2 {[%emt 0:02:48]} g5 {[%emt 0:07:40]} 14. f4 {[%emt 0:10:22]} gxf4 {[%emt 0:01:15]} 15. exf4 {[%emt 0:03:28]} exf4 {[%emt 0:01:19]} 16. Bxg7 {[%emt 0:05:43]} Rxg7 {[%emt 0:02:31]} 17. Nxf4 {[%emt 0:05:29]} Nxf4 {[%emt 0:00:35]} 18. Rxf4 {[%emt 0:01:07]} Qf6 {[%emt 0:01:22]} 19. Rd1 {[%emt 0:06:32]} Re8 {[%emt 0:00:55]} 20. Nc2 {[%emt 0:03:15]} Bd7 {[%emt 0:03:14]} 21. d4 {[%emt 0:01:55]} Rge7 {[%emt 0:01:14]} 22. Rf2 {[%emt 0:07:44]} Bc8 {[%emt 0:07:47]} 23. dxc5 {[%emt 0:02:41]} dxc5 {[%emt 0:00:22]} 24. Bd5+ {[%emt 0:00:23]} Kh8 {[%emt 0:00:31]} 25. Re1 {[%emt 0:01:50]} Ne5 {[%emt 0:01:42]} 26. Rfe2 {[%emt 0:01:34]} Rd8 {[%emt 0:03:19]} 27. Qf4 {[%emt 0:00:33]} Nd3 {[%emt 0:01:13]} 28. Rxe7 {[%emt 0:00:35]} Nxf4 {[%emt 0:00:31]} 29. gxf4 {[%emt 0:00:25]} Bd7 {[%emt 0:04:02]} 30. Bxb7 {[%emt 0:00:42]} Qc3 {[%emt 0:01:37]} 31. R1e2 {[%emt 0:00:28]} Qf6 {[%emt 0:04:58]} 32. Bd5 {[%emt 0:00:29]} Bc6 {[%emt 0:01:34]} 33. R7e6 {[%emt 0:00:31]} Qg7+ {[%emt 0:04:17]} 34. Rg2 {[%emt 0:00:26]} Bxd5 {[%emt 0:01:53]} 35. Rxg7 {[%emt 0:00:35]} Bxe6 {[%emt 0:00:06]} 36. Rg2 {[%emt 0:00:29]} Rd3 {[%emt 0:02:46]} 37. Kf1 {[%emt 0:00:31]} Bd7 {[%emt 0:01:11]} 38. Ke2 {[%emt 0:00:29]} Rc3 {[%emt 0:01:09]} 39. Ke1 {[%emt 0:00:31]} Bc6 {[%emt 0:00:49]} 40. Rf2 {[%emt 0:00:21]} Be4 {[%emt 0:00:45]} 41. Kd1 {[%emt 0:30:39]} Kg7 {[%emt 0:31:12]} 42. Na3 {[%emt 0:00:30]} a6 {[%emt 0:01:19]} 43. Nc2 {[%emt 0:00:27]} Kh6 {[%emt 0:01:02]} 44. Kc1 {[%emt 0:00:33]} Kh5 {[%emt 0:00:41]} 45. Kb2 {[%emt 0:00:23]} 1/2-1/2